bitfinex-derivatives/quotes_SOLF0:USTF0_20250202
["timestamp","ask_amount","ask_price","bid_price","bid_amount"]
[1738467667087,0.03496375,210.03,209.88,27.80913905]
[1738467667391,2.9115,210.08,209.92,11.85477839]
[1738467667889,4.7626,210.03,209.95,4.7642]
[1738467668084,0.03136566,210.02,209.96,27.80913905]
[1738467668283,0.03136566,210.02,209.98,0.02753224]
[1738467668483,11.1797,210.09,209.99,4.7631]
[1738467668681,0.0352693,210.02,209.98,0.02753224]
[1738467669082,4.7631,210.0,209.98,0.02753224]
[1738467669483,0.0352693,210.02,209.99,4.7632]
[1738467669680,0.0352693,210.02,209.98,0.02753224]
[1738467670084,27.80913905,209.99,209.8,27.80913905]
[1738467670282,27.80913905,209.99,209.76,27.80913905]
[1738467670690,27.80913905,209.99,209.8,27.80913905]
[1738467671187,4.7652,209.91,209.81,4.7673]
[1738467671490,0.03344109,209.92,209.8,27.80913905]
[1738467671693,4.7646,209.94,209.8,27.80913905]
[1738467671896,0.03286625,209.92,209.8,27.80913905]
[1738467672392,4.79786625,209.92,209.81,4.7673]
[1738467672592,0.03286625,209.92,209.81,4.7673]
[1738467672994,0.03286625,209.92,209.76,27.80913905]
[1738467673293,6.6011,209.94,209.76,27.80913905]
[1738467673588,6.6011,209.94,209.71,0.7378]
[1738467673589,0.03210611,209.86,209.72,27.80913905]
[1738467673783,27.80913905,209.91,209.72,27.80913905]
[1738467674189,0.03542151,209.81,209.72,27.80913905]
[1738467675893,0.03542151,209.81,209.7,94.32]
[1738467676093,4.7683,209.77,209.7,94.32]
[1738467676394,27.80913905,209.87,209.7,94.32]
[1738467676588,0.03471889,209.76,209.7,94.32]
[1738467676794,27.80913905,209.87,209.7,94.32]
[1738467676995,0.03050259,209.75,209.7,94.32]
[1738467677196,27.80913905,209.87,209.7,94.32]
[1738467677407,0.03114594,209.75,209.7,94.32]
[1738467677596,4.7673,209.82,209.7,94.32]
[1738467677898,0.03413339,209.75,209.7,94.32]
[1738467678093,4.7668,209.84,209.74,4.7689]
[1738467678294,0.03053942,209.75,209.74,4.7689]
[1738467678598,3.88,209.89,209.7,94.32]
[1738467679193,3.88,209.89,209.75,27.80913905]
[1738467679697,3.88,209.89,209.8,0.0305]
[1738467679698,0.03586885,209.84,209.8,0.0305]
[1738467681700,0.03586885,209.84,209.8,27.83963905]
[1738467681900,0.03586885,209.84,209.82,4.7671]
[1738467682294,27.80913905,209.99,209.8,27.83963905]
[1738467682502,27.80913905,210.03,209.84,27.80913905]
[1738467682698,27.80913905,209.98,209.8,27.80913905]
[1738467682899,4.7663,209.86,209.78,4.7679]
[1738467683107,27.80913905,209.94,209.76,27.80913905]
[1738467683399,4.79966273,209.87,209.76,27.80913905]
[1738467683604,0.03366273,209.87,209.83,0.03257571]
[1738467684106,7.386,210.01,209.84,27.80913905]
[1738467684304,10.4063,210.01,209.84,27.80913905]
[1738467684504,4.7638,209.97,209.9,4.7652]
[1738467684803,6.5663,210.01,209.84,27.80913905]
[1738467685200,4.764,209.96,209.84,27.80913905]
[1738467685505,0.03045813,209.95,209.9,0.03039351]
[1738467685705,0.03045813,209.95,209.9,4.79549351]
[1738467685906,0.03045813,209.95,209.9,0.03039351]
[1738467688401,0.03045813,209.95,209.84,12.60970756]
[1738467688602,3.546,210.01,209.84,12.60970756]
[1738467688912,4.7646,209.94,209.84,12.60970756]
[1738467689096,27.80913905,209.98,209.8,0.8708]
[1738467689300,27.80913905,209.94,209.77,27.80913905]
[1738467689503,0.03612158,209.88,209.83,0.03234132]
[1738467689907,4.7667,209.84,209.83,0.03234132]
[1738467690310,6.607,209.87,209.73,27.80913905]
[1738467691104,4.7673,209.82,209.74,4.7689]
[1738467691508,0.0360948,209.8,209.76,0.03383912]
[1738467692804,0.0360948,209.8,209.77,27.80913905]
[1738467693107,2.9161,209.93,209.77,27.80913905]
[1738467693408,2.9161,209.93,209.78,4.7679]
[1738467693607,2.9161,209.93,209.77,27.80913905]
[1738467693901,2.9161,209.93,209.77,32.57733905]
[1738467694107,27.80913905,209.87,209.7,0.4136]
[1738467694312,2.9718,209.86,209.83,0.03172467]
[1738467694509,2.9718,209.86,209.71,4.7694]
[1738467694708,4.2135,209.85,209.71,4.7694]
[1738467695112,4.7675,209.81,209.72,4.7693]
[1738467695410,4.2135,209.85,209.69,27.80913905]
[1738467695610,0.03532562,209.79,209.74,0.03092901]
[1738467697409,4.80322562,209.79,209.74,0.03092901]
[1738467697810,0.03532562,209.79,209.74,0.03092901]
[1738467700412,0.03532562,209.79,209.76,4.7683]
[1738467700612,0.03532562,209.79,209.74,0.03092901]
[1738467701809,0.03532562,209.79,209.77,27.80913905]
[1738467702108,3.1301,209.92,209.77,27.80913905]
[1738467702310,3.1301,209.92,209.81,27.80913905]
[1738467702714,2.9932,209.98,209.85,27.80913905]
[1738467703208,0.03118668,209.94,209.89,0.03171613]
[1738467703813,0.03118668,209.94,209.92,4.7646]
[1738467704011,4.3176,210.02,209.89,27.84085518]
[1738467704407,4.3176,210.02,209.89,27.80913905]
[1738467704815,30.69813905,210.07,209.89,27.80913905]
[1738467705016,2.889,210.07,209.93,27.80913905]
[1738467705315,0.03341715,210.0,209.96,0.03478738]
[1738467706216,27.80913905,209.99,209.78,0.4144]
[1738467706417,27.80913905,209.95,209.78,0.4144]
[1738467706617,4.7649,209.92,209.78,0.4144]
[1738467706915,7.1816,209.98,209.81,27.80913905]
[1738467707413,7.1816,209.98,209.87,0.0335111]
[1738467707621,0.03412888,209.92,209.87,0.0335111]
[1738467708412,0.03412888,209.92,209.81,15.68167052]
[1738467708616,0.03412888,209.92,209.83,27.80913905]
[1738467708917,4.0877,209.98,209.83,27.80913905]
[1738467709111,27.80913905,210.03,209.9,4.7651]
[1738467709620,27.80913905,210.03,209.87,27.80913905]
[1738467709918,0.03172355,209.99,209.94,0.03254685]
[1738467710618,4.764,209.96,209.94,0.03254685]
[1738467710919,27.8408626,209.99,209.78,0.4144]
[1738467711116,27.8408626,209.99,209.78,4.2144]
[1738467711318,27.80913905,210.03,209.79,3.8]
[1738467711518,27.80913905,210.03,209.84,27.80913905]
[1738467712122,0.03229623,209.96,209.84,27.80913905]
[1738467712327,0.03229623,209.96,209.9,4.7652]
[1738467712519,0.03229623,209.96,209.84,27.80913905]
[1738467713224,0.03229623,209.96,209.8,27.80913905]
[1738467713418,27.80913905,209.95,209.8,27.80913905]
[1738467713618,30.68333905,209.95,209.76,27.80913905]
[1738467714022,0.03012978,209.9,209.76,27.80913905]
[1738467714223,4.766,209.87,209.8,4.7675]
[1738467714521,30.68333905,209.95,209.76,27.80913905]
[1738467714721,0.03285842,209.86,209.8,4.7674]
[1738467715022,0.03285842,209.86,209.76,27.80913905]
[1738467716023,0.03285842,209.86,209.72,27.80913905]
[1738467716225,4.7672,209.82,209.75,4.7685]
[1738467716425,27.80913905,209.88,209.7,0.483]
[1738467716924,0.03403619,209.81,209.7,0.483]
[1738467717724,0.03403619,209.81,209.74,4.7689]
[1738467717924,0.03403619,209.81,209.68,94.36]
[1738467718322,2.959,209.83,209.68,94.36]
[1738467718528,0.0324402,209.77,209.68,94.36]
[1738467719227,0.0324402,209.77,209.7,4.7697]
[1738467719524,0.0324402,209.77,209.68,94.36]
[1738467720420,0.0324402,209.77,209.75,4.7687]
[1738467720922,4.7655,209.9,209.82,4.7671]
[1738467721115,19.76031272,209.97,209.82,27.80913905]
[1738467721322,19.76031272,209.97,209.86,27.80913905]
[1738467722128,0.03613848,209.93,209.89,0.03095311]
[1738467723223,27.80913905,209.91,209.89,0.03095311]
[1738467723523,27.80913905,209.91,209.76,8.5684]
[1738467723717,0.03613848,209.93,209.77,27.80913905]
[1738467723918,6.9694,209.94,209.77,27.80913905]
[1738467724622,4.7658,209.88,209.8,4.7674]
[1738467724925,0.03445061,209.88,209.77,27.80913905]
[1738467725527,0.03445061,209.88,209.72,27.80913905]
[1738467725823,27.80913905,209.87,209.72,27.80913905]
[1738467726027,4.7668,209.84,209.72,27.80913905]
[1738467726427,0.03105071,209.82,209.72,27.80913905]
[1738467726627,4.79825071,209.82,209.73,4.7691]
[1738467726827,4.79825071,209.82,209.72,27.80913905]
[1738467727023,0.03105071,209.82,209.72,27.80913905]
[1738467727228,4.7681,209.78,209.69,11.398]
[1738467727523,4.7681,209.78,209.69,2.8281]
[1738467727826,2.9699,209.86,209.69,2.8281]
[1738467728127,0.03072282,209.76,209.69,2.8281]
[1738467728625,6.9694,209.94,209.72,27.80913905]
[1738467728821,6.9694,209.94,209.83,27.80913905]
[1738467729021,7.7334,209.98,209.89,4.7655]
[1738467729217,7.7334,209.98,209.83,27.80913905]
[1738467729629,2.9699,209.98,209.9,4.7652]
[1738467730025,0.03035958,209.93,209.88,0.03532988]
[1738467730227,6.5867709,209.99,209.91,27.80913905]
[1738467730426,2.8523,210.03,209.91,27.80913905]
[1738467730628,2.8523,210.03,209.91,11.84659118]
[1738467731323,4.7649,209.92,209.77,27.80913905]
[1738467731629,27.80913905,209.99,209.77,27.80913905]
[1738467731630,0.03049681,209.99,209.95,6.845e-05]
[1738467731924,4.7653,209.9,209.81,4.7673]
[1738467732130,27.80913905,209.96,209.77,27.80913905]
[1738467732327,27.80913905,209.91,209.73,122.18913905]
[1738467732523,2.9636,209.9,209.73,122.18913905]
[1738467732728,0.03602606,209.84,209.8,0.03484397]
[1738467733024,2.606e-05,209.84,209.82,4.7671]
[1738467733323,2.9636,210.0,209.83,45.90913905]
[1738467733529,27.80913905,210.08,209.91,27.80913905]
[1738467733828,6.5867709,210.01,209.87,27.80913905]
[1738467734229,9.6196709,210.01,209.87,27.80913905]
[1738467734421,0.0350083,209.96,209.92,0.0351626]
[1738467734829,4.7991083,209.96,209.92,0.0351626]
[1738467735629,0.0350083,209.96,209.92,0.0351626]
[1738467736930,4.7645,209.94,209.92,0.0351626]
[1738467740228,0.0350083,209.96,209.92,0.0351626]
[1738467741528,26.34708362,210.05,209.92,0.0351626]
[1738467741935,26.34708362,210.05,209.94,27.80913905]
[1738467742335,26.34708362,210.05,209.96,4.7637]
[1738467742532,26.34708362,210.05,209.94,27.80913905]
[1738467742838,0.03422221,210.03,209.98,0.03056586]
[1738467744339,4.7628,210.01,209.98,0.03056586]
[1738467744834,4.7631,210.0,209.98,0.03056586]
[1738467746229,5.9725,210.02,209.98,0.03056586]
[1738467746436,27.80913905,210.01,209.85,3.8]
[1738467746637,27.80913905,210.01,209.81,0.5083]
[1738467747743,0.03563417,209.93,209.89,0.03208865]
[1738467747946,0.03563417,209.93,209.89,4.79758865]
[1738467748242,0.03563417,209.93,209.89,0.03208865]
[1738467748638,3.417e-05,209.93,209.92,4.7649]
[1738467753539,3.417e-05,209.93,209.91,4.7651]
[1738467753848,3.417e-05,209.93,209.89,0.03208865]
[1738467754240,3.417e-05,209.93,209.89,4.79758865]
[1738467754445,3.417e-05,209.93,209.89,0.03208865]
[1738467754946,3.417e-05,209.93,209.92,4.7649]
[1738467765158,52.71389825,210.13,209.92,161.3]
[1738467765356,18.98398362,210.11,210.07,27.80913905]
[1738467765557,39.78428187,210.13,210.07,27.80913905]
[1738467765749,39.78428187,210.13,210.12,4.7603]
[1738467765953,32.58188187,210.13,210.12,4.7603]
[1738467766750,32.58188187,210.13,210.11,27.80913905]
[1738467767548,32.58188187,210.13,210.1,0.03068352]
[1738467768352,0.03277948,210.15,210.1,0.03068352]
[1738467768552,0.03277948,210.15,210.11,27.80913905]
[1738467768956,27.80913905,210.36,210.11,27.80913905]
[1738467769257,27.80913905,210.36,210.18,27.80913905]
[1738467769457,10.2869,210.35,210.18,27.80913905]
[1738467769659,4.7568,210.28,210.18,27.80913905]
[1738467770054,10.2869,210.35,210.18,27.80913905]
[1738467770259,4.79124427,210.25,210.21,0.03355806]
[1738467770460,4.7574,210.25,210.18,27.80913905]
[1738467770663,4.79140818,210.25,210.21,0.03261406]
[1738467771557,0.03400818,210.25,210.22,27.80913905]
[1738467771761,10.2869,210.35,210.22,27.80913905]
[1738467772060,10.2869,210.35,210.27,27.80913905]
[1738467772659,15.0421,210.35,210.27,27.80913905]
[1738467772860,0.03002781,210.33,210.29,0.03155605]
[1738467774352,4.756,210.31,210.29,0.03155605]
[1738467774552,0.03002781,210.33,210.17,192.0]
[1738467774752,0.03002781,210.33,210.16,27.80913905]
[1738467774957,10.2869,210.35,210.2,27.80913905]
[1738467775760,4.7581,210.22,210.2,27.80913905]
[1738467775960,0.03095924,210.3,210.11,98.04]
[1738467775961,0.03095924,210.3,210.16,27.80913905]
[1738467776158,4.7585,210.2,210.19,0.03192977]
[1738467776454,0.03487623,210.22,210.11,94.24]
[1738467776655,4.76,210.14,210.11,94.24]
[1738467779360,0.03176661,210.15,210.12,27.80913905]
[1738467780164,0.03176661,210.15,210.11,94.24]
[1738467780365,0.03176661,210.15,210.12,27.80913905]
[1738467781869,0.03176661,210.15,210.11,94.24]
[1738467782664,4.7599,210.14,210.11,94.24]
[1738467783266,0.03176661,210.15,209.99,27.80913905]
[1738467783564,7.1432,210.19,209.99,27.80913905]
[1738467784666,0.03417821,210.11,210.07,0.03597319]
[1738467785266,4.7608,210.1,210.07,0.03597319]
[1738467785669,0.03417821,210.11,210.07,0.03597319]
[1738467785865,0.03417821,210.11,210.1,4.7608]
[1738467786569,7.1432,210.19,210.13,4.7601]
[1738467786769,7.1432,210.19,210.13,27.80913905]
[1738467787664,7.1432,210.19,210.14,0.03376928]
[1738467787866,0.03209113,210.18,210.14,0.03376928]
[1738467788268,4.7596,210.16,210.14,0.03376928]
[1738467788475,2.90979113,210.18,210.05,27.80913905]
[1738467788663,2.8777,210.18,210.01,27.80913905]
[1738467788868,4.7612,210.08,210.01,32.57173905]
[1738467789271,2.8777,210.18,210.01,27.80913905]
[1738467789574,0.0338974,210.12,210.07,0.03177329]
[1738467789977,0.0338974,210.12,210.09,27.80913905]
[1738467790665,0.0338974,210.12,210.11,4.7605]
[1738467792971,0.0338974,210.12,210.09,27.80913905]
[1738467793175,7.1014,210.27,210.13,27.80913905]
[1738467793367,4.7576,210.25,210.17,27.80913905]
[1738467793566,3.0049,210.26,210.17,27.80913905]
[1738467793771,39.10826602,210.4,210.21,32.56733905]
[1738467793971,4.7557,210.33,210.25,27.80913905]
[1738467794170,7.2216,210.35,210.29,27.80913905]
[1738467794374,0.03596011,210.31,210.29,27.80913905]
[1738467794573,2.8847,210.39,210.29,27.80913905]
[1738467794875,2.8847,210.39,210.33,27.80913905]
[1738467795178,4.7537,210.42,210.33,27.80913905]
[1738467795677,4.78880381,210.4,210.35,0.03648377]
[1738467796577,4.7547,210.37,210.35,0.03648377]
[1738467796774,0.03470381,210.4,210.25,27.80913905]
[1738467796971,34.97203905,210.44,210.25,27.80913905]
[1738467797278,34.97203905,210.44,210.25,32.56643905]
[1738467797477,34.97203905,210.44,210.25,27.80913905]
[1738467797777,4.7557,210.33,210.25,27.80913905]
[1738467797977,4.7557,210.33,210.32,0.03605481]
[1738467798174,0.03421698,210.31,210.21,27.80913905]
[1738467798379,4.108,210.32,210.17,27.80913905]
[1738467798572,27.80913905,210.28,210.09,27.80913905]
[1738467798981,4.108,210.32,210.17,27.80913905]
[1738467799279,0.03388223,210.27,210.22,0.03488874]
[1738467802780,0.03388223,210.27,210.13,27.80913905]
[1738467802981,3.78,210.3,210.09,27.80913905]
[1738467803175,27.80913905,210.24,210.05,27.80913905]
[1738467803374,4.7599,210.14,210.07,4.7614]
[1738467803579,2.9689,210.23,210.09,27.80913905]
[1738467803783,0.03612628,210.13,210.09,27.80913905]
[1738467803980,4.7588,210.19,210.11,4.7605]
[1738467804182,2.9689,210.23,210.13,27.80913905]
[1738467804379,2.9689,210.23,210.17,27.80913905]
[1738467804684,0.03453603,210.2,210.18,0.03050075]
[1738467805075,4.7573,210.26,210.18,4.7589]
[1738467805280,0.03175753,210.21,210.17,27.84059303]
[1738467805681,2.9689,210.31,210.17,27.80913905]
[1738467805880,0.03203497,210.21,210.17,27.8453955]
[1738467806087,4.7569,210.28,210.2,4.7585]
[1738467806384,2.9689,210.31,210.23,27.80913905]
[1738467806584,0.03377436,210.26,210.23,27.80913905]
[1738467806775,0.03377436,210.26,210.25,0.03371662]
[1738467807179,0.03377436,210.26,210.15,27.80913905]
[1738467807576,4.7588,210.19,210.15,27.80913905]
[1738467807778,3.0734,210.3,210.15,27.80913905]
[1738467807978,4.7578,210.24,210.16,4.7594]
[1738467808176,3.0734,210.3,210.19,27.80913905]
[1738467808377,0.0314165,210.22,210.19,27.80913905]
[1738467808576,0.03479262,210.23,210.2,4.7585]
[1738467809984,0.03479262,210.23,210.19,27.80913905]
[1738467810782,0.03479262,210.23,210.15,27.80913905]
[1738467810984,4.7586,210.2,210.15,27.80913905]
[1738467811183,0.03479262,210.23,210.07,27.80913905]
[1738467811383,4.0412,210.19,210.03,27.80913905]
[1738467811587,0.03326044,210.17,209.99,27.80913905]
[1738467811983,2.9914,210.18,210.03,27.80913905]
[1738467812289,4.761,210.09,210.03,27.80913905]
[1738467812685,0.03208358,210.11,210.03,27.80913905]
[1738467812891,4.7617,210.06,210.01,94.2]
[1738467813185,27.80913905,210.16,210.01,94.2]
[1738467813389,0.03405301,210.06,210.01,94.2]
[1738467813588,27.80913905,210.16,210.01,94.2]
[1738467813788,0.03543487,210.06,210.01,94.2]
[1738467813984,27.80913905,210.16,210.01,94.2]
[1738467814186,0.03376705,210.06,210.01,94.2]
[1738467814391,27.80913905,210.16,210.01,94.2]
[1738467814792,0.03579961,210.11,210.01,94.2]
[1738467815787,4.7618,210.06,210.01,94.2]
[1738467816289,0.03038771,210.06,210.01,94.2]
[1738467816487,4.7625,210.03,210.01,94.2]
[1738467816787,0.03038771,210.06,210.01,94.2]
[1738467816992,4.762,210.05,210.01,94.2]
[1738467817195,0.03038771,210.06,210.01,94.2]
[1738467817691,0.03038771,210.06,209.91,32.57413905]
[1738467817891,27.80913905,210.04,209.87,27.80913905]
[1738467818093,2.9367,210.03,209.87,27.80913905]
[1738467818299,4.7646,209.94,209.85,94.24]
[1738467819593,0.03312523,209.95,209.85,94.24]
[1738467820799,7.16612523,209.95,209.77,27.80913905]
[1738467821000,4.7654,209.9,209.77,27.80913905]
[1738467821294,7.133,209.95,209.78,4.768]
[1738467821499,0.03301788,209.86,209.78,4.768]
[1738467821800,4.79941788,209.86,209.79,4.7677]
[1738467822601,0.03301788,209.86,209.8,4.7675]
[1738467822998,0.03301788,209.86,209.77,27.80913905]
[1738467823193,0.03301788,209.86,209.73,27.80913905]
[1738467823397,0.03301788,209.86,209.7,94.28]
[1738467823604,27.80913905,209.88,209.7,94.28]
[1738467823802,0.03568255,209.81,209.71,5.23864963]
[1738467824105,0.03568255,209.81,209.7,94.28]
[1738467824303,4.7691,209.74,209.7,94.28]
[1738467824703,7.4144,209.83,209.7,94.28]
[1738467824906,0.03020463,209.74,209.7,94.28]
[1738467825099,12.1815,209.83,209.73,27.80913905]
[1738467825299,4.3143,209.83,209.7,94.28]
[1738467826205,4.7681,209.78,209.72,4.7693]
[1738467826607,4.7681,209.78,209.74,0.03454493]
[1738467826903,4.7687,209.76,209.74,0.03454493]
[1738467827307,0.03312685,209.79,209.74,0.03454493]
[1738467828007,4.7683,209.77,209.74,0.03454493]
[1738467828710,0.03312685,209.79,209.74,0.03454493]
[1738467829009,0.03312685,209.79,209.57,46.93432004]
[1738467829010,4.7702,209.69,209.62,4.7716]
[1738467829213,2.969,209.78,209.61,27.80913905]
[1738467829607,2.969,209.78,209.62,4.7716]
[1738467830302,0.03235637,209.72,209.62,4.7716]
[1738467830509,0.03235637,209.72,209.61,27.80913905]
[1738467830510,4.7699,209.7,209.61,27.80913905]
[1738467830710,4.7699,209.7,209.63,4.7714]
[1738467831107,0.03474671,209.69,209.63,4.7714]
[1738467831303,0.03474671,209.69,209.57,27.80913905]
[1738467831714,4.7713,209.64,209.57,32.58173905]
[1738467832009,0.03331398,209.65,209.57,27.80913905]
[1738467832206,4.7715,209.63,209.57,27.80913905]
[1738467832413,0.03331398,209.65,209.57,27.80913905]
[1738467833112,0.03331398,209.65,209.55,94.36]
[1738467833313,4.7721,209.61,209.49,27.80913905]
[1738467833610,2.9045,209.64,209.44,27.80913905]
[1738467833807,4.7726,209.58,209.44,32.58473905]
[1738467834108,0.03468069,209.57,209.44,27.80913905]
[1738467834318,4.7754,209.46,209.4,27.80913905]
[1738467834510,27.80913905,209.55,209.37,94.4]
[1738467834712,0.03597104,209.45,209.37,94.4]
[1738467834911,4.7767,209.4,209.32,27.80913905]
[1738467835111,4.2693,209.44,209.32,27.80913905]
[1738467835311,4.2693,209.44,209.28,27.80913905]
[1738467835516,0.03254096,209.4,209.28,27.80913905]
[1738467835711,0.03254096,209.4,209.32,27.80913905]
[1738467835910,0.03254096,209.4,209.36,27.80913905]
[1738467836110,6.0484,209.5,209.36,27.80913905]
[1738467836414,27.80913905,209.59,209.4,27.80913905]
[1738467836608,6.0484,209.6,209.44,27.80913905]
[1738467837010,6.0484,209.6,209.5,4.7743]
[1738467837213,2.9411,209.6,209.48,27.80913905]
[1738467837417,4.2693,209.64,209.52,27.80913905]
[1738467837822,6.9287,209.76,209.52,27.80913905]
[1738467838009,0.03269596,209.6,209.56,27.84102005]
[1738467838215,7.1342,209.75,209.56,27.80913905]
[1738467838415,27.80913905,209.72,209.56,27.80913905]
[1738467838615,0.03446922,209.6,209.56,27.84415762]
[1738467838815,27.80913905,209.72,209.56,27.80913905]
[1738467839217,0.03478597,209.6,209.56,27.84580425]
[1738467839521,27.80913905,209.72,209.56,27.80913905]
[1738467839920,0.03215479,209.6,209.56,27.84278414]
[1738467840117,27.80913905,209.72,209.56,27.80913905]
[1738467840312,4.7709,209.66,209.56,27.80913905]
[1738467840513,0.03460581,209.6,209.56,27.84095793]
[1738467840913,10.9342,209.75,209.56,27.80913905]
[1738467841319,0.03516476,209.6,209.56,0.0316971]
[1738467841522,27.80913905,209.72,209.52,27.80913905]
[1738467841712,4.7697,209.71,209.6,27.80913905]
[1738467841914,7.1342,209.75,209.6,27.80913905]
[1738467842223,3.1287,209.76,209.64,27.80913905]
[1738467842419,0.03328124,209.68,209.67,4.7705]
[1738467842614,6.2116,209.83,209.65,0.0329812]
[1738467843114,27.80913905,209.8,209.6,27.80913905]
[1738467843312,27.80913905,209.76,209.6,27.80913905]
[1738467843512,27.80913905,209.76,209.56,2.3939]
[1738467843513,4.1816,209.75,209.56,2.3939]
[1738467843920,0.03077622,209.7,209.66,0.03281287]
[1738467844722,4.7705,209.67,209.66,0.03281287]
[1738467845022,4.7705,209.67,209.55,27.80913905]
[1738467845023,0.03077622,209.7,209.55,27.80913905]
[1738467845224,3.149,209.69,209.55,27.80913905]
[1738467845424,4.7719,209.61,209.55,27.80913905]
[1738467846125,3.149,209.69,209.55,27.80913905]
[1738467846321,3.149,209.69,209.6,27.80913905]
[1738467846624,0.03544403,209.64,209.6,27.80913905]
[1738467846928,0.03544403,209.64,209.62,0.03305724]
[1738467847226,27.80913905,209.8,209.62,0.03305724]
[1738467847420,3.8,209.83,209.64,27.80913905]
[1738467847816,27.80913905,209.76,209.55,27.80913905]
[1738467848020,6.0874,209.74,209.55,27.80913905]
[1738467848216,4.7711,209.65,209.56,4.7728]
[1738467848416,6.0874,209.74,209.55,27.80913905]
[1738467848615,0.03406701,209.63,209.58,0.03060123]
[1738467849023,6.0874,209.74,209.55,27.80913905]
[1738467849224,27.80913905,209.72,209.58,0.03297323]
[1738467849420,0.03148751,209.63,209.58,0.03297323]
[1738467849616,4.772,209.61,209.55,32.58233905]
[1738467849820,4.772,209.61,209.58,0.03589889]
[1738467850025,0.03148751,209.63,209.58,0.03589889]
[1738467850322,4.7721,209.6,209.58,0.03589889]
[1738467850822,0.03148751,209.63,209.47,27.80913905]
[1738467851027,4.2527,209.62,209.47,27.80913905]
[1738467851217,3.1119,209.61,209.43,27.80913905]
[1738467851724,4.7743,209.51,209.43,27.80913905]
[1738467852119,0.03320575,209.49,209.43,27.80913905]
[1738467852321,0.03320575,209.49,209.45,0.03123174]
[1738467852827,4.7751,209.47,209.45,0.03123174]
[1738467853421,0.03320575,209.49,209.45,0.03123174]
[1738467855324,4.7752,209.47,209.45,0.03123174]
[1738467855720,0.03320575,209.49,209.33,27.80913905]
[1738467856128,4.0422,209.5,209.33,27.80913905]
[1738467856426,4.7747,209.49,209.43,27.80913905]
[1738467856925,0.03237537,209.48,209.43,27.80913905]
[1738467857130,4.80727537,209.48,209.43,27.80913905]
[1738467857527,4.80737537,209.48,209.43,27.80913905]
[1738467857727,0.03237537,209.48,209.39,27.80913905]
[1738467858132,2.9232,209.51,209.39,27.80913905]
[1738467858529,0.03077793,209.46,209.39,27.80913905]
[1738467858727,7.793e-05,209.46,209.39,27.80913905]
[1738467858928,4.0422,209.64,209.43,27.80913905]
[1738467859231,4.0422,209.64,209.51,4.7741]
[1738467859232,4.7727,209.58,209.51,4.7741]
[1738467859427,4.0422,209.64,209.47,27.80913905]
[1738467860033,0.03309353,209.58,209.53,0.03103688]
[1738467860433,0.03309353,209.58,209.55,27.80913905]
[1738467861024,6.8535,209.73,209.55,27.80913905]
[1738467861231,9.9067,209.73,209.6,27.80913905]
[1738467862136,4.7697,209.71,209.63,4.7714]
[1738467862337,0.03109303,209.69,209.64,0.0310938]
[1738467863034,4.7704,209.68,209.64,0.0310938]
[1738467863229,0.03109303,209.69,209.64,0.0310938]
[1738467863639,4.7709,209.66,209.64,0.0310938]
[1738467864336,4.7705,209.68,209.64,0.0310938]
[1738467864533,0.03109303,209.69,209.64,0.0310938]
[1738467865633,4.7708,209.66,209.64,0.0310938]
[1738467867736,4.7704,209.68,209.64,0.0310938]
[1738467867938,0.03109303,209.69,209.64,0.0310938]
[1738467868342,4.7708,209.66,209.64,0.0310938]
[1738467869840,4.7724,209.59,209.54,27.80913905]
[1738467870240,27.80913905,209.69,209.49,7.2438]
[1738467870439,27.80913905,209.69,209.49,4.7746]
[1738467870641,27.80913905,209.65,209.49,4.7746]
[1738467871038,0.0310711,209.59,209.55,0.03137158]
[1738467871539,4.7732,209.56,209.55,0.03137158]
[1738467871737,0.0310711,209.59,209.55,0.03137158]
[1738467871938,0.0310711,209.59,209.42,2.93852797]
[1738467871939,6.6563,209.58,209.4,27.80913905]
[1738467872147,4.776,209.43,209.36,27.80913905]
[1738467872340,27.80913905,209.53,209.36,27.80913905]
[1738467872539,27.80913905,209.57,209.36,27.80913905]
[1738467872842,4.7751,209.48,209.4,32.58573905]
[1738467873042,0.03234875,209.49,209.44,27.80913905]
[1738467873345,4.7738,209.53,209.46,4.7752]
[1738467873543,0.03651842,209.49,209.44,27.80913905]
[1738467873843,6.6563,209.58,209.44,27.80913905]
[1738467874350,31.58913905,209.66,209.48,27.80913905]
[1738467874541,3.8111,209.65,209.48,27.80913905]
[1738467874950,27.80913905,209.58,209.4,27.80913905]
[1738467875150,4.7745,209.5,209.41,4.7764]
[1738467875355,27.80913905,209.62,209.44,27.80913905]
[1738467875649,4.7736,209.54,209.47,4.775]